[Event "Titled Tuesday Blitz May 9 Late 2023"]
[White "AlbTB"]
[Black "rikchessmx"]
[WhiteElo "2445"]
[BlackElo "2177"]
[Result "0-1"]
[Round "02"]
[TimeControl "180+2"]
[Date "2023.05.09"]
[WhiteClock "0:00:19"]
[BlackClock "0:01:05"]

1. e4 {[%clk 0:01:01]}  e5 {[%clk 0:02:54]} 2. Nf3 {[%clk 0:01:00]}  Nc6 {[%clk 0:02:55]} 3. Bb5 {[%clk 0:01:00]}  Bc5 {[%clk 0:02:55]} 4. c3 {[%clk 0:01:00]}  Qf6 {[%clk 0:02:55]} 5. O-O {[%clk 0:01:00]}  Nge7 {[%clk 0:02:54]} 6. d4 {[%clk 0:01:00]}  exd4 {[%clk 0:02:54]} 7. Bg5 {[%clk 0:01:00]}  Qg6 {[%clk 0:02:54]} 8. cxd4 {[%clk 0:01:01]}  Nxd4 {[%clk 0:02:54]} 9. Nxd4 {[%clk 0:01:00]}  Qxg5 {[%clk 0:02:54]} 10. Nc3 {[%clk 0:01:01]}  O-O {[%clk 0:02:52]} 11. f4 {[%clk 0:01:01]}  Qf6 {[%clk 0:02:49]} 12. e5 {[%clk 0:01:01]}  Qb6 {[%clk 0:02:48]} 13. Ne2 {[%clk 0:00:54]}  Qxb5 {[%clk 0:02:48]} 14. Kh1 {[%clk 0:00:54]}  Bxd4 {[%clk 0:02:45]} 15. Nxd4 {[%clk 0:00:55]}  Qxb2 {[%clk 0:02:43]} 16. f5 {[%clk 0:00:55]}  d6 {[%clk 0:02:35]} 17. f6 {[%clk 0:00:54]}  Ng6 {[%clk 0:02:36]} 18. fxg7 {[%clk 0:00:54]}  Kxg7 {[%clk 0:02:36]} 19. exd6 {[%clk 0:00:49]}  cxd6 {[%clk 0:02:36]} 20. h4 {[%clk 0:00:47]}  Nxh4 {[%clk 0:02:13]} 21. Rg1 {[%clk 0:00:38]}  Ng6 {[%clk 0:02:07]} 22. Rf1 {[%clk 0:00:37]}  Be6 {[%clk 0:02:05]} 23. Rb1 {[%clk 0:00:37]}  Qxa2 {[%clk 0:02:03]} 24. Rxb7 {[%clk 0:00:37]}  Qd5 {[%clk 0:02:00]} 25. Nf5+ {[%clk 0:00:35]}  Kh8 {[%clk 0:01:53]} 26. Qa1+ {[%clk 0:00:29]}  Qe5 {[%clk 0:01:52]} 27. Nxd6 {[%clk 0:00:26]}  Qxa1 {[%clk 0:01:50]} 28. Rxa1 {[%clk 0:00:27]}  a5 {[%clk 0:01:48]} 29. Ne4 {[%clk 0:00:25]}  a4 {[%clk 0:01:44]} 30. Nc5 {[%clk 0:00:25]}  Bb3 {[%clk 0:01:43]} 31. Nxb3 {[%clk 0:00:24]}  axb3 {[%clk 0:01:43]} 32. Rxa8 {[%clk 0:00:25]}  Rxa8 {[%clk 0:01:42]} 33. Rxb3 {[%clk 0:00:26]}  Kg7 {[%clk 0:01:42]} 34. Kh2 {[%clk 0:00:26]}  Ra4 {[%clk 0:01:42]} 35. Kg3 {[%clk 0:00:27]}  h5 {[%clk 0:01:41]} 36. Rb5 {[%clk 0:00:27]}  h4+ {[%clk 0:01:41]} 37. Kh3 {[%clk 0:00:28]}  Ra3+ {[%clk 0:01:38]} 38. Kh2 {[%clk 0:00:28]}  Rg3 {[%clk 0:01:37]} 39. Rf5 {[%clk 0:00:29]}  Rg4 {[%clk 0:01:33]} 40. Ra5 {[%clk 0:00:29]}  Nf4 {[%clk 0:01:31]} 41. Rf5 {[%clk 0:00:27]}  Nxg2 {[%clk 0:01:23]} 42. Rf3 {[%clk 0:00:27]}  Nf4 {[%clk 0:01:22]} 43. Ra3 {[%clk 0:00:27]}  f5 {[%clk 0:01:21]} 44. Ra6 {[%clk 0:00:26]}  Rg6 {[%clk 0:01:20]} 45. Ra5 {[%clk 0:00:25]}  Rg5 {[%clk 0:01:19]} 46. Ra6 {[%clk 0:00:26]}  Ng6 {[%clk 0:01:19]} 47. Rb6 {[%clk 0:00:25]}  Kh6 {[%clk 0:01:19]} 48. Kh3 {[%clk 0:00:25]}  Kh5 {[%clk 0:01:19]} 49. Rb7 {[%clk 0:00:25]}  Rg3+ {[%clk 0:01:19]} 50. Kh2 {[%clk 0:00:26]}  Kg4 {[%clk 0:01:15]} 51. Rg7 {[%clk 0:00:26]}  Rh3+ {[%clk 0:01:14]} 52. Kg2 {[%clk 0:00:26]}  Rg3+ {[%clk 0:01:14]} 53. Kh2 {[%clk 0:00:27]}  Kg5 {[%clk 0:01:14]} 54. Rg8 {[%clk 0:00:26]}  Ra3 {[%clk 0:01:14]} 55. Rb8 {[%clk 0:00:24]}  Kg4 {[%clk 0:01:10]} 56. Rg8 {[%clk 0:00:23]}  Ra2+ {[%clk 0:01:10]} 57. Kg1 {[%clk 0:00:21]}  Kg5 {[%clk 0:01:08]} 58. Kh1 {[%clk 0:00:20]}  f4 {[%clk 0:01:08]} 59. Rg7 {[%clk 0:00:20]}  Kf5 {[%clk 0:01:06]} 60. Rf7+ {[%clk 0:00:20]}  Kg4 {[%clk 0:01:05]} 61. Rg7 {[%clk 0:00:20]}  Ra6 {[%clk 0:01:05]} 62. Kg1 {[%clk 0:00:20]}  f3 {[%clk 0:01:06]} 63. Rg8 {[%clk 0:00:20]}  Kg3 {[%clk 0:01:06]} 64. Rxg6+ {[%clk 0:00:18]}  Rxg6 {[%clk 0:01:05]} 65. Kh1 {[%clk 0:00:19]}  Ra6 {[%clk 0:01:05]} 66. Kg1 {[%clk 0:00:19]}  Ra1# {[%clk 0:01:05]} 0-1


[Site "https://www.chess.com"]

[Event "Titled Tuesday Blitz May 9 Late 2023"]
[White "Kiseljova, Marya"]
[Black "Kovalevsky, Stanislav"]
[WhiteFideId "4155009"]
[BlackFideId "13508598"]
[WhiteElo "1831"]
[BlackElo "2174"]
[Result "0-1"]
[Round "02"]
[TimeControl "180+2"]
[Date "2023.05.09"]
[WhiteClock "0:00:07"]
[BlackClock "0:00:12"]

1. d4 {[%clk 0:03:00]}  Nf6 {[%clk 0:02:58]} 2. c4 {[%clk 0:03:00]}  e6 {[%clk 0:02:59]} 3. Bf4 {[%clk 0:03:00]}  Bd6 {[%clk 0:02:57]} 4. Bxd6 {[%clk 0:02:45]}  cxd6 {[%clk 0:02:58]} 5. Nf3 {[%clk 0:02:45]}  b6 {[%clk 0:02:59]} 6. g3 {[%clk 0:02:42]}  Bb7 {[%clk 0:02:59]} 7. Bg2 {[%clk 0:02:43]}  d5 {[%clk 0:02:59]} 8. c5 {[%clk 0:02:35]}  d6 {[%clk 0:02:52]} 9. cxb6 {[%clk 0:02:34]}  Qxb6 {[%clk 0:02:51]} 10. Nbd2 {[%clk 0:02:22]}  Nc6 {[%clk 0:02:47]} 11. e3 {[%clk 0:02:07]}  Ba6 {[%clk 0:02:43]} 12. Qb3 {[%clk 0:01:59]}  Nb4 {[%clk 0:02:41]} 13. Qa4+ {[%clk 0:01:49]}  Ke7 {[%clk 0:02:37]} 14. Bf1 {[%clk 0:01:36]}  Bd3 {[%clk 0:02:08]} 15. Rc1 {[%clk 0:01:26]}  Rhc8 {[%clk 0:02:03]} 16. Rc3 {[%clk 0:01:22]}  Ne4 {[%clk 0:00:59]} 17. Rxd3 {[%clk 0:01:11]}  Rc1+ {[%clk 0:00:52]} 18. Ke2 {[%clk 0:01:10]}  Nxd3 {[%clk 0:00:52]} 19. Kxd3 {[%clk 0:01:10]}  Nxf2+ {[%clk 0:00:50]} 20. Ke2 {[%clk 0:01:05]}  Nxh1 {[%clk 0:00:50]} 21. Bg2 {[%clk 0:00:54]}  Rac8 {[%clk 0:00:50]} 22. Ne1 {[%clk 0:00:49]}  Qxb2 {[%clk 0:00:37]} 23. Bxh1 {[%clk 0:00:39]}  Rxe1+ {[%clk 0:00:36]} 24. Kxe1 {[%clk 0:00:37]}  Rc1+ {[%clk 0:00:37]} 25. Ke2 {[%clk 0:00:32]}  Rxh1 {[%clk 0:00:37]} 26. Qxa7+ {[%clk 0:00:32]}  Kf6 {[%clk 0:00:37]} 27. Qa5 {[%clk 0:00:28]}  Rxh2+ {[%clk 0:00:36]} 28. Kd3 {[%clk 0:00:28]}  h5 {[%clk 0:00:23]} 29. Qd8+ {[%clk 0:00:25]}  Kg6 {[%clk 0:00:23]} 30. Qa5 {[%clk 0:00:21]}  Rg2 {[%clk 0:00:21]} 31. a4 {[%clk 0:00:19]}  Rxg3 {[%clk 0:00:16]} 32. Nf1 {[%clk 0:00:11]}  Qb3+ {[%clk 0:00:14]} 33. Ke2 {[%clk 0:00:10]}  Rg2+ {[%clk 0:00:13]} 34. Kf3 {[%clk 0:00:10]}  Ra2 {[%clk 0:00:11]} 35. Ng3 {[%clk 0:00:09]}  Qd1+ {[%clk 0:00:11]} 36. Kf4 {[%clk 0:00:07]}  Qg4# {[%clk 0:00:12]} 0-1


[Site "https://www.chess.com"]

[Event "Titled Tuesday Blitz May 9 Late 2023"]
[White "Oliveira, Tiago Batista"]
[Black "Koutsin"]
[WhiteFideId "2108291"]
[WhiteElo "1962"]
[BlackElo "2441"]
[Result "0-1"]
[Round "02"]
[TimeControl "180+2"]
[Date "2023.05.09"]
[WhiteClock "0:00:00"]
[BlackClock "0:00:57"]

1. d4 {[%clk 0:03:00]}  e6 {[%clk 0:03:00]} 2. c4 {[%clk 0:02:59]}  Nf6 {[%clk 0:03:00]} 3. Nf3 {[%clk 0:02:59]}  b6 {[%clk 0:03:00]} 4. g3 {[%clk 0:02:59]}  Ba6 {[%clk 0:02:54]} 5. Qc2 {[%clk 0:02:57]}  Bb4+ {[%clk 0:02:49]} 6. Bd2 {[%clk 0:02:56]}  Be7 {[%clk 0:02:49]} 7. Bg2 {[%clk 0:02:56]}  c6 {[%clk 0:02:49]} 8. e4 {[%clk 0:02:54]}  d5 {[%clk 0:02:47]} 9. e5 {[%clk 0:02:51]}  Ne4 {[%clk 0:02:44]} 10. b3 {[%clk 0:02:43]}  Nxd2 {[%clk 0:02:35]} 11. Nbxd2 {[%clk 0:02:43]}  O-O {[%clk 0:02:36]} 12. O-O {[%clk 0:02:42]}  Bb7 {[%clk 0:02:25]} 13. Rfd1 {[%clk 0:02:40]}  Na6 {[%clk 0:02:24]} 14. Rac1 {[%clk 0:02:35]}  Rc8 {[%clk 0:02:23]} 15. Nf1 {[%clk 0:02:28]}  Ba3 {[%clk 0:02:17]} 16. Rb1 {[%clk 0:02:27]}  h6 {[%clk 0:02:17]} 17. Ne3 {[%clk 0:02:25]}  Qe7 {[%clk 0:02:13]} 18. Qe2 {[%clk 0:02:24]}  Nb4 {[%clk 0:02:09]} 19. Nc2 {[%clk 0:02:02]}  Nxc2 {[%clk 0:02:08]} 20. Qxc2 {[%clk 0:02:02]}  c5 {[%clk 0:02:06]} 21. dxc5 {[%clk 0:01:55]}  Bxc5 {[%clk 0:02:04]} 22. b4 {[%clk 0:00:56]}  Bxb4 {[%clk 0:01:59]} 23. Qa4 {[%clk 0:00:56]}  a5 {[%clk 0:01:48]} 24. cxd5 {[%clk 0:00:42]}  Bxd5 {[%clk 0:01:43]} 25. a3 {[%clk 0:00:42]}  Bc6 {[%clk 0:01:32]} 26. Qb3 {[%clk 0:00:39]}  Bc5 {[%clk 0:01:24]} 27. a4 {[%clk 0:00:26]}  Bd5 {[%clk 0:01:21]} 28. Qb5 {[%clk 0:00:23]}  Bc6 {[%clk 0:01:17]} 29. Qb3 {[%clk 0:00:21]}  Qe8 {[%clk 0:01:18]} 30. Ra1 {[%clk 0:00:15]}  Bd5 {[%clk 0:01:18]} 31. Qb5 {[%clk 0:00:14]}  Qxb5 {[%clk 0:01:15]} 32. axb5 {[%clk 0:00:14]}  Rfd8 {[%clk 0:01:12]} 33. Ne1 {[%clk 0:00:11]}  Bxg2 {[%clk 0:01:05]} 34. Nxg2 {[%clk 0:00:10]}  Bd4 {[%clk 0:01:05]} 35. Rab1 {[%clk 0:00:10]}  Bxe5 {[%clk 0:01:05]} 36. Rxd8+ {[%clk 0:00:08]}  Rxd8 {[%clk 0:01:04]} 37. Ne3 {[%clk 0:00:08]}  Bd4 {[%clk 0:01:04]} 38. Nc4 {[%clk 0:00:08]}  Bc5 {[%clk 0:01:02]} 39. Rc1 {[%clk 0:00:08]}  Rd5 {[%clk 0:01:02]} 40. Kg2 {[%clk 0:00:06]}  e5 {[%clk 0:01:00]} 41. Kf3 {[%clk 0:00:06]}  f5 {[%clk 0:01:01]} 42. Ke2 {[%clk 0:00:05]}  Kf7 {[%clk 0:00:59]} 43. f3 {[%clk 0:00:06]}  Ke6 {[%clk 0:00:59]} 44. Ne3 {[%clk 0:00:05]}  Bxe3 {[%clk 0:00:58]} 45. Kxe3 {[%clk 0:00:05]}  Rxb5 {[%clk 0:00:58]} 46. Rc6+ {[%clk 0:00:05]}  Kd5 {[%clk 0:00:58]} 47. Rc7 {[%clk 0:00:05]}  a4 {[%clk 0:00:59]} 48. Rxg7 {[%clk 0:00:05]}  Ra5 {[%clk 0:00:59]} 49. Rd7+ {[%clk 0:00:05]}  Kc4 {[%clk 0:00:56]} 50. Rd2 {[%clk 0:00:04]}  a3 {[%clk 0:00:56]} 51. Ra2 {[%clk 0:00:00]}  Kb3 {[%clk 0:00:57]} 0-1


[Site "https://www.chess.com"]

[Event "Titled Tuesday Blitz May 9 Late 2023"]
[White "Stead, Kerry"]
[Black "Golubev, Mikhail"]
[WhiteFideId "3202577"]
[BlackFideId "14100983"]
[WhiteElo "1997"]
[BlackElo "2374"]
[Result "0-1"]
[Round "02"]
[TimeControl "180+2"]
[Date "2023.05.09"]
[WhiteClock "0:01:24"]
[BlackClock "0:01:11"]

1. d4 {[%clk 0:02:59]}  Nf6 {[%clk 0:02:59]} 2. f3 {[%clk 0:02:58]}  d5 {[%clk 0:02:55]} 3. e4 {[%clk 0:02:57]}  dxe4 {[%clk 0:02:51]} 4. Nc3 {[%clk 0:02:57]}  exf3 {[%clk 0:02:49]} 5. Nxf3 {[%clk 0:02:57]}  g6 {[%clk 0:02:49]} 6. Bc4 {[%clk 0:02:51]}  Bg7 {[%clk 0:02:49]} 7. O-O {[%clk 0:02:51]}  O-O {[%clk 0:02:48]} 8. Qe1 {[%clk 0:02:50]}  Bf5 {[%clk 0:02:32]} 9. Qh4 {[%clk 0:02:44]}  c5 {[%clk 0:01:49]} 10. dxc5 {[%clk 0:02:41]}  Nbd7 {[%clk 0:01:49]} 11. Be3 {[%clk 0:02:34]}  Rc8 {[%clk 0:01:42]} 12. Ng5 {[%clk 0:02:32]}  Ne5 {[%clk 0:01:25]} 13. Bb3 {[%clk 0:02:15]}  Neg4 {[%clk 0:01:20]} 14. Qxg4 {[%clk 0:01:24]}  Nxg4 {[%clk 0:01:11]} 0-1


[Site "https://www.chess.com"]

[Event "Titled Tuesday Blitz May 9 Late 2023"]
[White "Jimenez Almeida, Luis David"]
[Black "Curtis, John"]
[WhiteFideId "22242244"]
[BlackFideId "3200256"]
[WhiteElo "2245"]
[BlackElo "2203"]
[Result "1-0"]
[Round "02"]
[TimeControl "180+2"]
[Date "2023.05.09"]
[WhiteClock "0:00:37"]
[BlackClock "0:00:00"]

1. e4 {[%clk 0:03:00]}  c5 {[%clk 0:02:59]} 2. Nc3 {[%clk 0:03:00]}  Nc6 {[%clk 0:02:56]} 3. g3 {[%clk 0:03:01]}  g6 {[%clk 0:02:55]} 4. Bg2 {[%clk 0:03:02]}  Bg7 {[%clk 0:02:55]} 5. Nge2 {[%clk 0:03:02]}  e5 {[%clk 0:02:55]} 6. O-O {[%clk 0:03:01]}  Nge7 {[%clk 0:02:55]} 7. d3 {[%clk 0:03:02]}  d6 {[%clk 0:02:56]} 8. Nd5 {[%clk 0:03:02]}  Nxd5 {[%clk 0:02:55]} 9. exd5 {[%clk 0:03:03]}  Nd4 {[%clk 0:02:48]} 10. c3 {[%clk 0:03:03]}  Nxe2+ {[%clk 0:02:47]} 11. Qxe2 {[%clk 0:03:04]}  O-O {[%clk 0:02:48]} 12. a4 {[%clk 0:03:04]}  a5 {[%clk 0:02:43]} 13. h3 {[%clk 0:03:02]}  Re8 {[%clk 0:02:42]} 14. Qc2 {[%clk 0:03:00]}  Bf5 {[%clk 0:02:36]} 15. g4 {[%clk 0:02:57]}  Bd7 {[%clk 0:02:34]} 16. f4 {[%clk 0:02:57]}  exf4 {[%clk 0:02:31]} 17. Bxf4 {[%clk 0:02:58]}  Be5 {[%clk 0:02:31]} 18. Qf2 {[%clk 0:02:51]}  f5 {[%clk 0:02:06]} 19. Rae1 {[%clk 0:02:41]}  Qf6 {[%clk 0:01:58]} 20. Bxe5 {[%clk 0:02:38]}  Rxe5 {[%clk 0:01:56]} 21. Rxe5 {[%clk 0:02:34]}  Qxe5 {[%clk 0:01:56]} 22. Re1 {[%clk 0:02:34]}  Qf6 {[%clk 0:01:52]} 23. gxf5 {[%clk 0:02:32]}  Bxf5 {[%clk 0:01:46]} 24. Re6 {[%clk 0:02:21]}  Qd8 {[%clk 0:01:42]} 25. Re3 {[%clk 0:02:21]}  Bd7 {[%clk 0:01:34]} 26. Qf4 {[%clk 0:02:20]}  Qf8 {[%clk 0:01:33]} 27. Qg3 {[%clk 0:01:55]}  Re8 {[%clk 0:01:26]} 28. Be4 {[%clk 0:01:50]}  Kh8 {[%clk 0:00:43]} 29. b3 {[%clk 0:01:47]}  b5 {[%clk 0:00:39]} 30. axb5 {[%clk 0:01:46]}  Bxb5 {[%clk 0:00:39]} 31. c4 {[%clk 0:01:46]}  Bd7 {[%clk 0:00:39]} 32. Rf3 {[%clk 0:01:44]}  Qe7 {[%clk 0:00:39]} 33. Qf4 {[%clk 0:01:38]}  Kg7 {[%clk 0:00:36]} 34. Qg3 {[%clk 0:01:27]}  Rf8 {[%clk 0:00:35]} 35. Re3 {[%clk 0:01:28]}  Qf6 {[%clk 0:00:32]} 36. Bg2 {[%clk 0:01:25]}  Rf7 {[%clk 0:00:22]} 37. Kh2 {[%clk 0:01:09]}  Qf4 {[%clk 0:00:15]} 38. Qxf4 {[%clk 0:01:10]}  Rxf4 {[%clk 0:00:15]} 39. Kg3 {[%clk 0:01:11]}  Rf7 {[%clk 0:00:15]} 40. Re1 {[%clk 0:01:10]}  a4 {[%clk 0:00:14]} 41. bxa4 {[%clk 0:01:08]}  Bxa4 {[%clk 0:00:14]} 42. Ra1 {[%clk 0:01:08]}  Be8 {[%clk 0:00:12]} 43. Ra8 {[%clk 0:01:07]}  Re7 {[%clk 0:00:11]} 44. Be4 {[%clk 0:01:05]}  Kf6 {[%clk 0:00:10]} 45. h4 {[%clk 0:01:03]}  Ke5 {[%clk 0:00:09]} 46. Kg4 {[%clk 0:01:03]}  h6 {[%clk 0:00:09]} 47. Ra1 {[%clk 0:00:55]}  Bd7+ {[%clk 0:00:09]} 48. Kg3 {[%clk 0:00:54]}  g5 {[%clk 0:00:05]} 49. hxg5 {[%clk 0:00:55]}  hxg5 {[%clk 0:00:05]} 50. Rh1 {[%clk 0:00:54]}  Kd4 {[%clk 0:00:05]} 51. Rh6 {[%clk 0:00:52]}  Ke5 {[%clk 0:00:01]} 52. Rg6 {[%clk 0:00:51]}  g4 {[%clk 0:00:01]} 53. Rg5+ {[%clk 0:00:46]}  Kd4 {[%clk 0:00:00]} 54. Rh5 {[%clk 0:00:37]} 1-0


[Site "https://www.chess.com"]

[Event "Titled Tuesday Blitz May 9 Late 2023"]
[White "Sliwicki, Damian"]
[Black "Dargan, Paul A G"]
[WhiteFideId "1127128"]
[BlackFideId "416762"]
[WhiteElo "2030"]
[BlackElo "2042"]
[Result "1-0"]
[Round "02"]
[TimeControl "180+2"]
[Date "2023.05.09"]
[WhiteClock "0:00:29"]
[BlackClock "0:00:05"]

1. e4 {[%clk 0:03:00]}  c5 {[%clk 0:02:52]} 2. Nf3 {[%clk 0:02:57]}  g6 {[%clk 0:02:50]} 3. d4 {[%clk 0:02:44]}  cxd4 {[%clk 0:02:51]} 4. Nxd4 {[%clk 0:02:45]}  Nc6 {[%clk 0:02:49]} 5. Nc3 {[%clk 0:02:44]}  Nf6 {[%clk 0:02:48]} 6. Be3 {[%clk 0:02:44]}  Bg7 {[%clk 0:02:44]} 7. Qd2 {[%clk 0:02:33]}  O-O {[%clk 0:02:43]} 8. Nb3 {[%clk 0:02:23]}  Ng4 {[%clk 0:02:26]} 9. Bg5 {[%clk 0:02:15]}  Qb6 {[%clk 0:02:12]} 10. f3 {[%clk 0:02:01]}  Nge5 {[%clk 0:01:52]} 11. Nd5 {[%clk 0:01:53]}  Qd8 {[%clk 0:01:29]} 12. O-O-O {[%clk 0:01:44]}  b6 {[%clk 0:01:21]} 13. Be2 {[%clk 0:01:30]}  d6 {[%clk 0:01:10]} 14. h3 {[%clk 0:01:18]}  Be6 {[%clk 0:01:09]} 15. f4 {[%clk 0:01:06]}  Nd7 {[%clk 0:01:05]} 16. Bb5 {[%clk 0:01:07]}  Bxd5 {[%clk 0:00:58]} 17. exd5 {[%clk 0:01:08]}  Na5 {[%clk 0:00:53]} 18. Nd4 {[%clk 0:01:05]}  Rc8 {[%clk 0:00:47]} 19. b4 {[%clk 0:00:50]}  Nc4 {[%clk 0:00:46]} 20. Bxc4 {[%clk 0:00:49]}  Rxc4 {[%clk 0:00:47]} 21. Nc6 {[%clk 0:00:50]}  Rxc6 {[%clk 0:00:18]} 22. dxc6 {[%clk 0:00:51]}  Nf6 {[%clk 0:00:17]} 23. b5 {[%clk 0:00:44]}  Ne4 {[%clk 0:00:17]} 24. Qe3 {[%clk 0:00:39]}  f5 {[%clk 0:00:16]} 25. Qb3+ {[%clk 0:00:34]}  Kh8 {[%clk 0:00:15]} 26. Qe6 {[%clk 0:00:35]}  a6 {[%clk 0:00:13]} 27. Bxe7 {[%clk 0:00:30]}  Qe8 {[%clk 0:00:11]} 28. c7 {[%clk 0:00:30]}  Rf7 {[%clk 0:00:10]} 29. c8=Q {[%clk 0:00:30]}  Rxe7 {[%clk 0:00:05]} 30. Qxe8+ {[%clk 0:00:29]} 1-0


[Site "https://www.chess.com"]

[Event "Titled Tuesday Blitz May 9 Late 2023"]
[White "Rios Escobar, Adan"]
[Black "Torres Dominguez, David"]
[WhiteFideId "3403645"]
[BlackFideId "2220857"]
[WhiteElo "2435"]
[BlackElo "1999"]
[Result "1-0"]
[Round "02"]
[TimeControl "180+2"]
[Date "2023.05.09"]
[WhiteClock "0:00:10"]
[BlackClock "0:00:00"]

1. d4 {[%clk 0:02:54]}  e5 {[%clk 0:02:58]} 2. dxe5 {[%clk 0:02:50]}  d6 {[%clk 0:02:58]} 3. Nf3 {[%clk 0:02:50]}  Bg4 {[%clk 0:02:56]} 4. Bg5 {[%clk 0:02:44]}  Qd7 {[%clk 0:02:55]} 5. Nc3 {[%clk 0:02:42]}  Nc6 {[%clk 0:02:55]} 6. a3 {[%clk 0:02:33]}  dxe5 {[%clk 0:02:49]} 7. Qxd7+ {[%clk 0:02:32]}  Bxd7 {[%clk 0:02:48]} 8. O-O-O {[%clk 0:02:29]}  f6 {[%clk 0:02:44]} 9. Bh4 {[%clk 0:02:15]}  O-O-O {[%clk 0:02:43]} 10. e3 {[%clk 0:01:59]}  h5 {[%clk 0:02:40]} 11. h3 {[%clk 0:01:59]}  g5 {[%clk 0:02:31]} 12. Bxg5 {[%clk 0:01:12]}  fxg5 {[%clk 0:02:28]} 13. Nxg5 {[%clk 0:01:13]}  Nh6 {[%clk 0:02:19]} 14. Bc4 {[%clk 0:01:06]}  Be7 {[%clk 0:02:17]} 15. Ne6 {[%clk 0:01:02]}  Bxe6 {[%clk 0:02:11]} 16. Bxe6+ {[%clk 0:01:03]}  Kb8 {[%clk 0:02:11]} 17. Ne4 {[%clk 0:00:56]}  Rxd1+ {[%clk 0:01:45]} 18. Rxd1 {[%clk 0:00:57]}  Rd8 {[%clk 0:01:44]} 19. Rg1 {[%clk 0:00:53]}  h4 {[%clk 0:01:37]} 20. g4 {[%clk 0:00:50]}  hxg3 {[%clk 0:01:37]} 21. fxg3 {[%clk 0:00:49]}  Rf8 {[%clk 0:01:34]} 22. Kd2 {[%clk 0:00:44]}  Nf5 {[%clk 0:01:31]} 23. g4 {[%clk 0:00:37]}  Ng7 {[%clk 0:01:24]} 24. Bc4 {[%clk 0:00:21]}  Rh8 {[%clk 0:01:23]} 25. Bf1 {[%clk 0:00:16]}  Kc8 {[%clk 0:01:17]} 26. g5 {[%clk 0:00:14]}  Nd8 {[%clk 0:01:12]} 27. Rg4 {[%clk 0:00:14]}  Nde6 {[%clk 0:01:05]} 28. h4 {[%clk 0:00:12]}  Kd8 {[%clk 0:01:04]} 29. Ng3 {[%clk 0:00:11]}  Ne8 {[%clk 0:00:57]} 30. g6 {[%clk 0:00:10]}  Bxh4 {[%clk 0:00:27]} 31. Nf5 {[%clk 0:00:10]}  Bf6 {[%clk 0:00:20]} 32. Bc4 {[%clk 0:00:10]}  N6g7 {[%clk 0:00:19]} 33. e4 {[%clk 0:00:10]}  Rh2+ {[%clk 0:00:00]} 34. Kc3 {[%clk 0:00:10]} 1-0


[Site "https://www.chess.com"]

[Event "Titled Tuesday Blitz May 9 Late 2023"]
[White "Maranhao,Jose Renato Ruiz"]
[Black "D`Arruda, Ricardo D."]
[WhiteFideId "2135175"]
[BlackFideId "100692"]
[WhiteElo "1970"]
[BlackElo "2430"]
[Result "0-1"]
[Round "02"]
[TimeControl "180+2"]
[Date "2023.05.09"]
[WhiteClock "0:00:00"]
[BlackClock "0:00:45"]

1. e4 {[%clk 0:03:00]}  c5 {[%clk 0:02:06]} 2. Nf3 {[%clk 0:02:59]}  Nc6 {[%clk 0:02:06]} 3. d4 {[%clk 0:02:59]}  cxd4 {[%clk 0:02:07]} 4. Nxd4 {[%clk 0:03:00]}  e5 {[%clk 0:02:08]} 5. Nb3 {[%clk 0:02:57]}  a6 {[%clk 0:02:08]} 6. Nc3 {[%clk 0:02:56]}  Nf6 {[%clk 0:02:09]} 7. Be2 {[%clk 0:02:55]}  Bb4 {[%clk 0:02:08]} 8. Bf3 {[%clk 0:02:52]}  d6 {[%clk 0:02:04]} 9. O-O {[%clk 0:02:52]}  Be6 {[%clk 0:02:04]} 10. Nd5 {[%clk 0:02:50]}  Bxd5 {[%clk 0:02:04]} 11. exd5 {[%clk 0:02:50]}  Ne7 {[%clk 0:02:04]} 12. c3 {[%clk 0:02:39]}  Ba5 {[%clk 0:02:03]} 13. Bg5 {[%clk 0:02:34]}  Bb6 {[%clk 0:01:58]} 14. Nd2 {[%clk 0:02:11]}  Ng6 {[%clk 0:01:57]} 15. Ne4 {[%clk 0:02:08]}  O-O {[%clk 0:01:55]} 16. h4 {[%clk 0:01:56]}  Qe7 {[%clk 0:01:28]} 17. h5 {[%clk 0:01:52]}  Nf4 {[%clk 0:01:29]} 18. h6 {[%clk 0:01:51]}  N4xd5 {[%clk 0:01:25]} 19. hxg7 {[%clk 0:01:01]}  Kxg7 {[%clk 0:01:26]} 20. Nxf6 {[%clk 0:00:20]}  Nxf6 {[%clk 0:01:25]} 21. Bd5 {[%clk 0:00:10]}  Bd8 {[%clk 0:01:21]} 22. Qf3 {[%clk 0:00:09]}  Rb8 {[%clk 0:01:13]} 23. Rad1 {[%clk 0:00:08]}  Kh8 {[%clk 0:01:04]} 24. Be4 {[%clk 0:00:07]}  Rg8 {[%clk 0:01:04]} 25. Bxf6+ {[%clk 0:00:02]}  Qxf6 {[%clk 0:01:03]} 26. Qh3 {[%clk 0:00:02]}  Rg7 {[%clk 0:00:59]} 27. Rd3 {[%clk 0:00:00]}  Qf4 {[%clk 0:00:45]} 0-1


[Site "https://www.chess.com"]

[Event "Titled Tuesday Blitz May 9 Late 2023"]
[White "James, Stuart"]
[Black "Villuendas Valero, Adrian"]
[WhiteFideId "7400489"]
[BlackFideId "2262460"]
[WhiteElo "1950"]
[BlackElo "2328"]
[Result "0-1"]
[Round "02"]
[TimeControl "180+2"]
[Date "2023.05.09"]
[WhiteClock "0:02:13"]
[BlackClock "0:01:23"]

1. e4 {[%clk 0:02:56]}  e6 {[%clk 0:03:00]} 2. d4 {[%clk 0:02:55]}  d5 {[%clk 0:03:00]} 3. Nd2 {[%clk 0:02:56]}  Be7 {[%clk 0:02:57]} 4. Ngf3 {[%clk 0:02:55]}  Nf6 {[%clk 0:02:57]} 5. e5 {[%clk 0:02:54]}  Nfd7 {[%clk 0:02:57]} 6. Bd3 {[%clk 0:02:53]}  c5 {[%clk 0:02:57]} 7. c3 {[%clk 0:02:53]}  Nc6 {[%clk 0:02:58]} 8. O-O {[%clk 0:02:53]}  g5 {[%clk 0:02:58]} 9. dxc5 {[%clk 0:02:44]}  g4 {[%clk 0:02:58]} 10. Nd4 {[%clk 0:02:44]}  Ndxe5 {[%clk 0:02:58]} 11. Nxc6 {[%clk 0:02:42]}  bxc6 {[%clk 0:02:48]} 12. Be2 {[%clk 0:02:39]}  Bxc5 {[%clk 0:02:45]} 13. Nb3 {[%clk 0:02:36]}  Bd6 {[%clk 0:02:43]} 14. Bf4 {[%clk 0:02:35]}  Nf3+ {[%clk 0:02:30]} 15. Bxf3 {[%clk 0:02:35]}  Bxf4 {[%clk 0:02:05]} 16. Bxg4 {[%clk 0:02:35]}  h5 {[%clk 0:01:41]} 17. Bh3 {[%clk 0:02:30]}  Qf6 {[%clk 0:01:35]} 18. g3 {[%clk 0:02:27]}  Bc7 {[%clk 0:01:31]} 19. Qd4 {[%clk 0:02:25]}  e5 {[%clk 0:01:25]} 20. Qa4 {[%clk 0:02:13]}  Bxh3 {[%clk 0:01:23]} 0-1


[Site "https://www.chess.com"]

[Event "Titled Tuesday Blitz May 9 Late 2023"]
[White "Dzida, Kamil"]
[Black "Dmitriev, Sergey"]
[WhiteFideId "21828652"]
[BlackFideId "14101785"]
[WhiteElo "2139"]
[BlackElo "2132"]
[Result "0-1"]
[Round "02"]
[TimeControl "180+2"]
[Date "2023.05.09"]
[WhiteClock "0:02:53"]
[BlackClock "0:02:28"]

1. b3 {[%clk 0:03:00]}  e5 {[%clk 0:02:57]} 2. Bb2 {[%clk 0:03:01]}  d6 {[%clk 0:02:56]} 3. e3 {[%clk 0:03:01]}  g6 {[%clk 0:02:57]} 4. f4 {[%clk 0:03:01]}  Bg7 {[%clk 0:02:56]} 5. Nf3 {[%clk 0:03:02]}  Bg4 {[%clk 0:02:53]} 6. Bc4 {[%clk 0:03:00]}  Nf6 {[%clk 0:02:47]} 7. fxe5 {[%clk 0:02:59]}  dxe5 {[%clk 0:02:44]} 8. Bxf7+ {[%clk 0:02:59]}  Kxf7 {[%clk 0:02:40]} 9. Nxe5+ {[%clk 0:02:59]}  Kf8 {[%clk 0:02:29]} 10. O-O {[%clk 0:02:53]}  Bxd1 {[%clk 0:02:28]} 0-1


[Site "https://www.chess.com"]